Cogmind - Beta 14 @@@ ROGUE MODE // 2025.01.08 @ 17:27:18 Player: lazy_engineer Result: Destroyed by FR-GI0(R) with Subdweller Machine Gun Performance ------------- Evolutions (0) 0 Regions Visited (3) 600 Robots Destroyed (22) 110 Value Destroyed (281) 281 Prototype IDs (13) 260 Alien Tech Used (0) 0 Bonus (0) 0 TOTAL SCORE: 1251 Bonus ------- None Cogmind --------- Core Integrity 0/250 Matter 279/300 Energy 99/100 System Corruption 0% Temperature Cool (0) Movement Core (100) Ox1 Location -10/Subcaves Parts ------- > --- POWER (1) -------- (None) > --- PROPULSION (2) --- Aluminum Leg > --- UTILITY (2) ------ Subdweller Optics > --- WEAPON (2) ------- Mining Claw > --- INVENTORY (5) ---- Ion Engine Aluminum Leg Particle Gun Grenade Launcher Datajack Peak State ------------ > --- POWER ------------ (None) > --- PROPULSION ------- Aluminum Leg Flight Unit > --- UTILITY ---------- (None) > --- WEAPON ----------- Particle Gun Mining Claw > --- INVENTORY -------- Ion Engine Aluminum Leg Grenade Launcher Datajack [Rating: 5] Favorites ----------- Power None Propulsion Aluminum Leg Leg Aluminum Leg Flight Unit Flight Unit Utility Subdweller Optics Device Subdweller Optics Weapon Light Assault Rifle Energy Gun Particle Gun Ballistic Gun Light Assault Rifle Launcher Grenade Launcher Slashing Weapon Mining Claw Special Melee Weapon Datajack Build | -11 -10 -10 -10 ------- Run | Yrd Mat Min Sub Slots Evolved . | . . . . Power . | . . . . Propulsion . | . . . . Utility . | . . . . Weapon . | . . . . Parts Attached 19 | 4 5 3 7 Power . | . . . . Engine . | . . . . Core . | . . . . Reactor . | . . . . Propulsion 4 | 2 . 1 1 Treads . | . . . . Leg 3 | 2 . . 1 Wheel . | . . . . Hover . | . . . . Flight 1 | . . 1 . Utility 1 | . . . 1 Device 1 | . . . 1 Storage . | . . . . Processor . | . . . . Hackware . | . . . . Protection . | . . . . Artifact . | . . . . Weapon 14 | 2 5 2 5 Energy Gun 1 | . . . 1 Energy Cannon . | . . . . Ballistic Gun 7 | 2 3 . 2 Ballistic Cannon . | . . . . Launcher 1 | . . 1 . Special Weapon . | . . . . Impact Weapon . | . . . . Slashing Weapon 3 | . . 1 2 Piercing Weapon . | . . . . Special Melee Weapon 2 | . 2 . . Unidentified Prototypes . | . . . . Parts Lost 3 | . . . 3 Power . | . . . . Propulsion 1 | . . . 1 Utility . | . . . . Weapon 2 | . . . 2 Highest Loss Streak 2 | . . . 2 To Critical Strikes . | . . . . Average Slot Usage (%) 49 | . 57 47 46 Leg 19 | . 28 23 14 Flight 7 | . . 4 13 Device 1 | . . . 3 Energy Gun 2 | . . . 4 Ballistic Gun 10 | . 27 9 2 Launcher 1 | . . 5 . Slashing Weapon 4 | . . 3 8 Peak Build Rating 5 | 4 4 4 5 Average Rating 3 | 3 4 3 3 On Entrance 2 | . 4 4 3 Naked Turns . | . . . . Heaviest Build 4 | 3 3 3 4 Greatest Support 4 | 3 3 4 4 Greatest Overweight (x) . | . . . . Average Overweight (x) . | . . . . Largest Inventory Capacity 5 | 5 5 5 5 Average Capacity 5 | 5 5 5 5 Most Carried 5 | 5 5 5 5 Average Carried 4 | 4 4 4 4 Final Capacity 5 | 5 5 5 5 Final Carried 5 | 5 5 5 5 Class Distribution -------------------- 100% | Mutant Dominant Class ---------------- Mutant | -10/Materials Mutant | -10/Mines Mutant | -10/Subcaves Resources | -11 -10 -10 -10 ----------- Run | Yrd Mat Min Sub Matter Collected 677 | 424 114 10 129 Remotely . | . . . . Salvage Created 498 | 236 171 10 81 Parts 51 | 28 10 8 5 Haulers Intercepted . | . . . . Recyclers Shooed . | . . . . Parts Field Recycled . | . . . . Retrieved Matter . | . . . . Parts Self-Destructed 3 | . . . 3 Prevented . | . . . . Kills | -11 -10 -10 -10 ------- Run | Yrd Mat Min Sub Combat Hostiles Destroyed 10 | . 5 3 2 Melee 1 | . . . 1 Guns 6 | . 5 . 1 AOE 3 | . . 3 . Classes Destroyed 5 | 3 2 . . Worker 4 | 2 1 1 . Tunneler 7 | 7 . . . Recycler 1 | 1 . . . Swarmer 6 | . 3 3 . Grunt 4 | . 2 . 2 Best Kill Streak 6 | 6 6 4 1 Combat Bots Only 5 | . 5 3 1 Max Kills in Single Turn 2 | 1 1 2 1 Gunslinging . | . . . . Exploded 2 | . . 2 . Melee 1 | . . . 1 Uniques/NPCs Destroyed . | . . . . Combat | -11 -10 -10 -10 -------- Run | Yrd Mat Min Sub Hostile Shots Fired 72 | . 26 7 39 Missed 27 | . 11 2 14 Damage Taken 608 | . 149 58 401 Core 256 | . 35 28 193 Absorbed by Shields . | . . . . Core Remaining (%) 100 | 100 . . . Volleys Fired 59 | 21 16 5 17 Largest 2 | 2 2 2 2 Hottest 40 | 40 40 40 40 Shots Fired 103 | 42 32 6 23 Gun 99 | 42 32 2 23 Cannon . | . . . . Launcher 4 | . . 4 . Special . | . . . . Kinetic 99 | 42 32 2 23 Thermal . | . . . . Explosive 4 | . . 4 . Electromagnetic . | . . . . Robot Hit Streak 11 | 6 8 5 11 Robot Miss Streak 5 | 2 5 1 2 Penetration Max . | . . . . Secondary Targets 4 | . 3 . 1 Max Gunslinging Chain 1 | . 1 . 1 Shots Hit Robots 73 | 24 21 4 24 Core Hits 38 | 16 10 5 7 Critical Kills . | . . . . Critical Parts Destroyed . | . . . . Critical Strikes . | . . . . Melee Attacks 30 | . 2 11 17 Impact . | . . . . Slashing 28 | . . 11 17 Piercing . | . . . . Sneak Attacks 2 | . 2 . . Combat Hostiles . | . . . . Follow-up Attacks . | . . . . Damage Inflicted 1109 | 293 220 289 307 Guns 680 | 293 220 19 148 Cannons . | . . . . Explosions 270 | . . 270 . Melee 159 | . . . 159 Ramming . | . . . . Kinetic 680 | 293 220 19 148 Thermal . | . . . . Explosive 270 | . . 270 . Electromagnetic . | . . . . Impact . | . . . . Slashing 159 | . . . 159 Piercing . | . . . . Highest Corruption . | . . . . Average Corruption . | . . . . Corruption Purged . | . . . . Corruption Blocked . | . . . . Overload Shots . | . . . . Overflow Damage 6 | . . 6 . Projectiles . | . . . . Explosions 6 | . . 6 . Melee . | . . . . Knockbacks . | . . . . Impact . | . . . . Kinetic . | . . . . Secondary . | . . . . Self-Inflicted Damage 23 | . . 23 . Shots 2 | . . 2 . Rammed 1 | . . 1 . Targets Rammed 1 | . . 1 . Kicked . | . . . . Crushed . | . . . . Highest Temperature 4 | . 4 . . Average Temperature 3 | . 3 . . Received Heat Transfer 180 | . 45 . 135 Siege Activations . | . . . . Robots Corrupted . | . . . . Combat Hostiles . | . . . . Parts Fried . | . . . . Impact Corruptions . | . . . . Robots Melted . | . . . . Combat Hostiles . | . . . . Parts Melted . | . . . . Heat Transferred . | . . . . Parts Sabotaged . | . . . . Parts Stolen . | . . . . Parts Stripped . | . . . . Power Chain Reactions . | . . . . Alert | -11 -10 -10 -10 ------- Run | Yrd Mat Min Sub Peak Influence 218 | 50 218 171 . Initial 84 | . 32 84 . Average 73 | 21 93 127 . Maximum Alert Level 1 | . 1 . . Low Security (%) 97 | 100 89 100 . Level 1 2 | . 10 . . Level 2 . | . . . . Level 3 . | . . . . Level 4 . | . . . . Level 5 . | . . . . High Security . | . . . . Max Security . | . . . . Squads Dispatched . | . . . . Investigation . | . . . . Extermination . | . . . . Reinforcement . | . . . . Assault . | . . . . Garrison . | . . . . Intercept . | . . . . Searches Triggered . | . . . . Construction Impeded . | . . . . Haulers Reinforced . | . . . . Active Scanning Responses . | . . . . Cargo Convoy Interrupts . | . . . . Stealth | -11 -10 -10 -10 --------- Run | Yrd Mat Min Sub Distress Signals 3 | . 1 2 . Communications Jammed . | . . . . Distress Signals . | . . . . Times Spotted 14 | . 8 3 3 Peak Tracking Total 5 | . 5 3 2 Tactical Retreats . | . . . . Traps | -11 -10 -10 -10 ------- Run | Yrd Mat Min Sub Traps Triggered . | . . . . Indirectly . | . . . . Trap Hack Attempts . | . . . . Triggered . | . . . . Disarmed . | . . . . Reprogrammed . | . . . . Reused . | . . . . Traps Extracted . | . . . . Installed . | . . . . Triggered . | . . . . Machines | -11 -10 -10 -10 ---------- Run | Yrd Mat Min Sub Machines Disabled . | . . . . Max in Single Turn . | . . . . Machines Repaired . | . . . . Machines Dismantled . | . . . . Machines Sabotaged . | . . . . Overloaded Fab Kills . | . . . . Hacking | -11 -10 -10 -10 --------- Run | Yrd Mat Min Sub Machines Accessed 5 | . 4 . 1 Terminals 3 | . 3 . . Fabricators . | . . . . Repair Stations . | . . . . Recycling Units 1 | . 1 . . Scanalyzers . | . . . . Garrison Access . | . . . . Total Hacks 22 | . 21 . 1 Successful 11 | . 10 . 1 Failed 11 | . 11 . . Catastrophic 1 | . 1 . . Database Lockouts . | . . . . Manual 15 | . 15 . . Terminals 13 | . 13 . . Fabricators . | . . . . Repair Stations . | . . . . Recycling Units 8 | . 8 . . Scanalyzers . | . . . . Garrison Access . | . . . . Terminal Hacks 4 | . 3 . 1 Prototype ID Bank 1 | . 1 . . Branch Access Points 1 | . 1 . . Transport Status 1 | . 1 . . Derelict Proto ID Bank 1 | . . . 1 Fabricator Hacks . | . . . . Repair Station Hacks . | . . . . Recycling Unit Hacks 2 | . 2 . . Retrieve Components 2 | . 2 . . Scanalyzer . | . . . . Garrison Access Hacks . | . . . . Unauthorized Hacks 5 | . 5 . . Terminals 2 | . 2 . . Botnet 1 | . 1 . . Operators 1 | . 1 . . Fabricators . | . . . . Repair Stations . | . . . . Recycling Units 3 | . 3 . . Monitor 1 | . 1 . . Reject 1 | . 1 . . Mask 1 | . 1 . . Scanalyzers . | . . . . Garrison Access . | . . . . Data Cores Recovered . | . . . . Used . | . . . . Hacking Detections 4 | . 4 . . Full Trace Events . | . . . . Feedback Events . | . . . . Feedback Blocked . | . . . . Robot Schematics Acquired . | . . . . Robots Built . | . . . . Authchips . | . . . . Time . | . . . . Total Robot Build Rating . | . . . . Part Schematics Acquired . | . . . . Parts Built . | . . . . Authchips . | . . . . Time . | . . . . Total Part Build Rating . | . . . . Parts Repaired . | . . . . Time . | . . . . Parts Recycled . | . . . . Recycled Matter . | . . . . Retrieved Matter . | . . . . Retrieved Components . | . . . . Parts Scanalyzed . | . . . . Part Schematics Acquired . | . . . . Parts Damaged . | . . . . Bothacking | -11 -10 -10 -10 ------------ Run | Yrd Mat Min Sub Used RIF Installer . | . . . . Robots Hacked 1 | . 1 . . Non-combat 1 | . 1 . . Combat . | . . . . Robot Hacks Applied 1 | . 1 . . no_distress 1 | . 1 . . Relay Couplers Released . | . . . . Fabnet Peak Effective % . | . . . . Robots Rewired . | . . . . Allies Hacked . | . . . . Hacks Repelled . | . . . . Allies | -11 -10 -10 -10 -------- Run | Yrd Mat Min Sub Total Allies . | . . . . Largest Group . | . . . . Highest-Rated Group . | . . . . Highest-Rated Ally . | . . . . Total Orders . | . . . . Ally Attacks . | . . . . Total Damage . | . . . . Kills . | . . . . Allies Corrupted . | . . . . Allies Melted . | . . . . Intel | -11 -10 -10 -10 ------- Run | Yrd Mat Min Sub Robot Analysis Total . | . . . . Derelict Logs Recovered 1 | . . . 1 Drone Launches . | . . . . Drone Recoveries . | . . . . Exploration | -11 -10 -10 -10 ------------- Run | Yrd Mat Min Sub Turns Passed 839 | 237 149 170 283 Spaces Moved 994 | 228 169 233 364 Core 576 | 228 169 179 . Treads . | . . . . Legs . | . . . . Wheels . | . . . . Hover . | . . . . Flight 418 | . . 54 364 Fastest Speed 50 | 50 50 50 50 Average Speed 50 | 50 50 50 50 Slowest Speed 50 | 50 50 50 50 Overloaded Moves . | . . . . Propulsion Burnouts . | . . . . Robots Hopped . | . . . . Cave-ins Triggered . | . . . . Exploration Rate (%) 27 | 8 30 44 29 Regions Visited 3 Branch Regions 2 Pre-discovered Areas . | . . . . Known Exits Taken 1 | . 1 . . Unknown Exits Taken 2 | 1 . 1 . Scrap Searched 1 | . . . 1 Spaces Dug 5 | . . 5 . Terrain Destroyed 19 | . . 19 . Melee 5 | . . 5 . Projectile . | . . . . AOE 14 | . . 14 . Terrain Rammed . | . . . . Walls Destroyed . | . . . . Machines Disabled . | . . . . Actions | -11 -10 -10 -10 --------- Run | Yrd Mat Min Sub Total 1184 | 312 202 259 411 Wait 62 | 51 5 3 3 Move 991 | 227 168 232 364 Hop . | . . . . Pick Up 14 | 9 3 . 2 Fast Attach 2 | . . 1 1 Attach 8 | 4 . 1 3 Detach 3 | . . 2 1 Swap 9 | . 5 1 3 Drop 5 | . 3 2 . Fire 59 | 21 16 5 17 Melee 30 | . 2 11 17 Ram 1 | . . 1 . Kick . | . . . . Crush . | . . . . Escape Stasis . | . . . . Rewire . | . . . . Trap . | . . . . Miscellaneous . | . . . . Route ------- -11/Scrapyard -10/Materials (discovered 2 exits: *Min x2) -10/Mines -10/Subcaves History --------- Turn | Location | Event 8 | -11/Scrapyard | Discovered new exit (range 16) 238 | -11/Scrapyard | Entered Materials 261 | -10/Materials | Identified exit to Mines 307 | -10/Materials | Build established: Mutant 387 | -10/Materials | Entered Mines 445 | -10/Mines | Assembled infested the area 553 | -10/Mines | Discovered new exit (range 4) 557 | -10/Mines | Entered Subcaves 594 | -10/Subcaves | Core integrity fell below 50% 608 | -10/Subcaves | Learned 4 Materials zone layouts 623 | -10/Subcaves | A swath of the cavern ceiling suddenly collapsed 705 | -10/Subcaves | Visited 4L-MR0's lab 726 | -10/Subcaves | A swath of the cavern ceiling suddenly collapsed 773 | -10/Subcaves | Shifting Twisted Machinery released Sub. Optics 798 | -10/Subcaves | Shifting Twisted Machinery released Spk. Treads 817 | -10/Subcaves | Disturbed a concealed Subdweller 825 | -10/Subcaves | Core integrity fell below 20% 840 | -10/Subcaves | Destroyed by FR-GI0(R) with Subdweller Machine Gun Last Messages --------------- Flightbrick Gun Armor Tower Shield Power Bank Rainbow Chip VL-GR5's Exoskeleton "Deathgrip" Powered Cannon 00711_ 4L-MR0 mumbles to no one in particular: "Damn Subs sneaking around stealing my stuff." A swath of the cavern ceiling suddenly collapses. Sub. Optics falls loose from the Twisted Machinery. 00775_ Acquired Sub. Optics. Spk. Treads falls loose from the Twisted Machinery. 00817_ FR-GI0(R) angrily emerges from the Twisted Machinery. 00817_ Searching scrap... 00817_ Found Sub. Beam Cannon. 00817_ Found 48 Matter. 00818_ Acquired 48 matter. 00830_ Flight Unit destroyed. 00835_ Subatomizers dissect the Sub. Beam Cannon. Map ----- +----------------------------------------------------+ | | | | | | | | | | | | | | | | | | | | | ?????????????????????????????????????????????????? | | ?????????????????????????????????????????????????? | | ?????????????????????????????????????????????????? | | ?????????????????????????????????????????????????? | | ?????????????????????????????????????????????????? | | ?????????????????????????????????????????????????? | | ?????????????????????????????????????????????????? | | ?????????????????????????????????????????????????? | | ??????????????#??????????????????????????????????? | | ??????????????#"?????????????????????????????????? | | ??????????????#" ????????????????????????????????? | | ??????????????# #???????????????????????????#???? | | ??????????????# " ??????????????????????? ## ???? | | ???????????????# <<##########????????????? ???? | | ????????????????# # R<#?????????????? ???? | | ??????????????????## @ #?????????????? ???? | | ??????????????????# ##] ##?????????????? ???? | | ????????????????### "#####??????????????? ???? | | ?????????????#### " ### #??????????? ???? | | ???????????### #???????#????# ???? | | ???????????# #??????## ??## #?## | | ???????????## ## #??????? "## ## ? | | ????????????#### ## #???????? # # ? | | ???????????????# ## #?????????" #? | | ??????????????## ## #?# #?##?????## ## | | ??????????????# # #?? #? ??????# # " | | ??????????????## ## ##?? ## ??????### #"" | | ??????????????# ####???? ##?## # ?????# "#" | | ??????????????# #??????##???? ##?#""??#""" """" | | ??????????????# ######???????# ?#??""??##""" " | | ??????????????## ###""##??#### ? ??? ???##"" " | | ?????????????## ##""" #?## # ???? ????## | | ?????????????# =" " ""#?## ?????# ##???# | | ?????????????# """ ""#### #?????? #???#" | | ?????????????## "##" "#?# #???????? #???##" | | ???????????#### "###" ### ######??? ##???#" | | ???????????# #?#"" ## ##?## #???#"" | | ???????????# "" ###" ## ### #????### | | ???????????# #"##?### ## # # ########" | | ???????????## ####????# ## ## | +----------------------------------------------------+ Best States ------------- Heat Dissipation 25 Energy Generation 5 Energy Capacity 100 Matter Stores 300 Matter Capacity 300 Sight Range 21 Terrain Scan Density 10 Evasion (%) 60 Item Schematics ----------------- None Robot Schematics ------------------ None Fabricated ------------ Nothing Alien Tech Used ----------------- None Achievements -------------- None Challenges ------------ None Game ------ Seed SmallRainbowChainsaw Manual? 0 Play Time 00:12:13 Cumulative 54.3 hours Start 2025.01.08 @ 17:15:04 End 2025.01.08 @ 17:27:18 Sessions 1 Manual Loads 0 Difficulty Rogue Special Mode None Game No. 108 Rogue 108 Adventurer 0 Explorer 0 Win Type - Total 0 Types 0/0/0/0/0/0/0/0/0 Lore% 19 Gallery% 34 Achievement% 30 Wizard Run 0 Options --------- Layout 0 ASCII 0 Keyboard 0 Movement Mouse Keybinds 0 Fullscreen 1 Font 24/Smallcaps Map View 76x50 Zoom Use 0% Tactical HUD 1 Map Filters NONE Filters NONE Steam 1 RUN: f2883ec0-d64b-478b-b930-eb3f0eb54823